fUSD/lending_fUSD_20250107
["ID","MTS","AMOUNT","RATE_DAILY","PERIOD"]
[347975023,1736257818931,-500.0,9.973e-05,2]
[347975024,1736257818959,-652.55,9.973e-05,2]
[347975025,1736257818985,-1412.62,9.973e-05,2]
[347975026,1736257819010,-500.0,9.973e-05,2]
[347975027,1736257819035,-500.0,9.973e-05,2]
[347975028,1736257819062,-500.0,9.973e-05,2]
[347975029,1736257819089,-613.46,9.973e-05,2]
[347975030,1736257819113,-500.0,9.973e-05,2]
[347975031,1736257819138,-887.93,9.973e-05,2]
[347975032,1736257819163,-923.0,9.973e-05,2]
[347975033,1736257819187,-500.0,9.973e-05,2]
[347975034,1736257819212,-534.58,9.973e-05,2]
[347975035,1736257819237,-564.45,9.973e-05,2]
[347975036,1736257819262,-500.0,9.973e-05,2]
[347975037,1736257819286,-500.0,9.973e-05,2]
[347975038,1736257819311,-1093.4,9.973e-05,2]
[347975039,1736257819337,-1383.15,9.973e-05,2]
[347975040,1736257819361,-500.0,9.973e-05,2]
[347975041,1736257819387,-1933.27,9.999e-05,2]
[347975042,1736257819413,-6598.82,9.999e-05,2]
[347975043,1736257819439,-2259.29,9.999e-05,2]
[347975044,1736257819464,-3684.69,9.999e-05,2]
[347975045,1736257819488,-860.08,9.999e-05,2]
[347975046,1736257819513,-10505.49,9.999e-05,2]
[347975047,1736257819538,-1846.69,9.999e-05,2]
[347975048,1736257819565,-4422.37,9.999e-05,2]
[347975049,1736257819591,-2228.31,9.999e-05,2]
[347975050,1736257819616,-1344.8,9.999e-05,2]
[347975051,1736257819642,-952.81,9.999e-05,2]
[347975052,1736257819668,-1259.9,9.999e-05,2]
[347975053,1736257819696,-3637.15,9.999e-05,2]
[347975054,1736257819930,-500.0,9.999e-05,2]
[347975055,1736257819957,-1754.91,9.999e-05,2]
[347975056,1736257819982,-931.5,9.999e-05,2]
[347975057,1736257820009,-33846.97086597,0.0001,2]
[347975058,1736257820034,-264728.77589737,0.0001,2]
[347975059,1736257820061,-151.0,0.0001,2]
[347975060,1736257820084,-22645.50388302,0.0001,2]
[347975061,1736257820107,-250.02572827,0.0001,2]
[347975062,1736257820131,-156998.0,0.0001,2]
[347975063,1736257820154,-4037.14,0.0001,2]
[347975064,1736257820177,-196.43001041,0.0001,2]
[347975065,1736257820199,-151.0,0.0001,2]
[347975066,1736257820223,-151.0,0.0001,2]
[347975067,1736257820247,-151.0,0.0001,2]
[347975068,1736257820271,-151.0,0.0001,2]
[347975069,1736257820295,-166.53,0.0001,2]
[347975070,1736257820320,-286.51253116,0.0001,2]
[347975071,1736257820344,-184.71888679,0.0001,2]
[347975072,1736257820368,-3000.0,0.0001,2]
[347975073,1736257820391,-3000.0,0.0001,2]
[347975074,1736257820415,-3000.0,0.0001,2]
[347975075,1736257820439,-3000.0,0.0001,2]
[347975076,1736257820463,-3000.0,0.0001,2]
[347975077,1736257820487,-3000.0,0.0001,2]
[347975078,1736257821087,500.0,9.972e-05,2]
[347975079,1736257821216,1606.33,9.972e-05,2]
[347975080,1736257821397,300.0,9.84e-05,2]
[347975081,1736257821541,153.0,9.838e-05,2]
[347975082,1736257821689,153.0,9.838e-05,2]
[347975083,1736257821824,153.0,9.838e-05,2]
[347975084,1736257821920,153.0,9.838e-05,2]
[347975085,1736257821973,153.0,9.838e-05,2]
[347975086,1736257822045,153.0,9.838e-05,2]
[347975087,1736257822106,153.0,9.838e-05,2]
[347975088,1736257822172,153.0,9.838e-05,2]
[347975089,1736257822209,153.0,9.838e-05,2]
[347975090,1736257822281,153.0,9.838e-05,2]
[347975091,1736257822426,153.0,9.838e-05,2]
[347975092,1736257822857,500.0,9.972e-05,2]
[347975093,1736257823631,508.87,9.972e-05,2]
[347975094,1736257823677,150.0,9.95e-05,2]
[347975095,1736257824016,1287.6,9.972e-05,2]
[347975096,1736257824766,160.285,9.95e-05,2]
[347975097,1736257825685,154.414,9.95e-05,2]
[347975098,1736257826126,150.0,9.95e-05,2]
[347975099,1736257826340,150.0,9.95e-05,2]
[347975100,1736257826473,157.429,9.95e-05,2]
[347975101,1736257827138,860.63,9.972e-05,2]
[347975102,1736257828892,168.7,9.29e-05,2]
[347975103,1736257828983,739.5,9.972e-05,2]
[347975104,1736257829021,2087.28,9.767e-05,2]
[347975105,1736257829207,4167.94,9.972e-05,2]
[347975106,1736257829459,500.0,9.972e-05,2]
[347975107,1736257829594,1466.53,9.972e-05,2]
[347975108,1736257829627,543.31,9.699e-05,2]
[347975109,1736257829865,543.31,9.973e-05,2]
[347975110,1736257830883,952.19,9.769e-05,2]
[347975127,1736257832026,-251.16384229,0.0001,2]
[347975128,1736257832039,-135.85904792,0.00010003,2]
[347975129,1736257832432,-115.30479422,0.00010003,2]
[347975130,1736257832441,-583.0,0.00010041,2]
[347975131,1736257832451,-501.93279139,0.00010041,2]
[347975132,1736257832461,-473.20199535,0.00010041,2]
[347975133,1736257832470,-501.39973379,0.00010041,2]
[347975134,1736257832479,-362.71843352,0.00010041,2]
[347975135,1736257832491,-137.28156648,0.00010041,2]
[347975136,1736257832500,-500.0,0.00010041,2]
[347975137,1736257832509,-500.0,0.00010041,2]
[347975138,1736257832518,-660.45,0.00010041,2]
[347975139,1736257832527,-513.68,0.00010041,2]
[347975140,1736257832537,-500.0,0.00010041,2]
[347975141,1736257832546,-655.8,0.00010041,2]
[347975142,1736257832556,-592.63,0.00010041,2]
[347975143,1736257832566,-713.89433175,0.00010041,2]
[347975144,1736257832645,-600.51566825,0.00010041,2]
[347975145,1736257832670,-1202.24,0.00010041,2]
[347975146,1736257832697,-1530.77,0.00010041,2]
[347975147,1736257832725,-1723.87,0.00010041,2]
[347975148,1736257832751,-500.0,0.00010041,2]
[347975149,1736257832776,-519.92,0.00010041,2]
[347975150,1736257832800,-775.43,0.00010041,2]
[347975151,1736257832825,-591.46,0.00010041,2]
[347975152,1736257832850,-500.0,0.00010041,2]
[347975153,1736257832874,-500.0,0.00010041,2]
[347975154,1736257832900,-500.0,0.00010041,2]
[347975155,1736257832926,-755.72,0.00010041,2]
[347975156,1736257832951,-500.0,0.00010041,2]
[347975157,1736257832979,-598.07,0.00010041,2]
[347975158,1736257833004,-776.21,0.00010041,2]
[347975159,1736257833029,-1283.6,0.00010041,2]
[347975160,1736257833054,-848.62,0.00010041,2]
[347975161,1736257833080,-645.0,0.00010041,2]
[347975162,1736257833106,-565.22,0.00010041,2]
[347975163,1736257833131,-1964.44,0.00010041,2]
[347975164,1736257833157,-962.79,0.00010041,2]
[347975165,1736257833193,-180.33,0.00010041,2]
[347975166,1736257833219,-3765.98,0.00010041,2]
[347975167,1736257833245,-718.49,0.00010041,2]
[347975168,1736257833271,-500.0,0.00010041,2]
[347975169,1736257833296,-988.17,0.00010041,2]
[347975170,1736257833321,-500.0,0.00010041,2]
[347975171,1736257833347,-1520.46,0.00010041,2]
[347975172,1736257833372,-1240.93,0.00010041,2]
[347975173,1736257833397,-897.47,0.00010041,2]
[347975174,1736257833423,-841.45,0.00010041,2]
[347975175,1736257833449,-1329.71,0.00010041,2]
[347975176,1736257833475,-877.15,0.00010041,2]
[347975177,1736257833502,-591.57,0.00010041,2]
[347975178,1736257833528,-856.48,0.00010041,2]
[347975179,1736257833555,-2649.4,0.00010041,2]
[347975180,1736257833583,-566.25,0.00010041,2]
[347975181,1736257833609,-2496.25,0.00010041,2]
[347975182,1736257833634,-1440.19,0.00010041,2]
[347975183,1736257833659,-945.93,0.00010041,2]
[347975184,1736257833687,-2087.28,0.00010041,2]
[347975185,1736257833718,-151.0,0.00010042,2]
[347975186,1736257833746,-151.0,0.00010042,2]
[347975187,1736257833770,-500.0,0.00010042,2]
[347975188,1736257833796,-500.0,0.00010042,2]
[347975189,1736257833821,-500.0,0.00010042,2]
[347975190,1736257833846,-574.83,0.00010042,2]
[347975191,1736257833871,-152.250944,0.00010042,2]
[347975192,1736257833896,-500.0,0.00010042,2]
[347975193,1736257833921,-500.0,0.00010042,2]
[347975194,1736257833946,-501.60786134,0.00010042,2]
[347975195,1736257833972,-500.0,0.00010042,2]
[347975196,1736257833996,-500.0,0.00010042,2]
[347975197,1736257834020,-500.0,0.00010042,2]
[347975198,1736257834044,-500.0,0.00010042,2]
[347975199,1736257834069,-500.0,0.00010042,2]
[347975200,1736257834093,-500.0,0.00010042,2]
[347975201,1736257834118,-574.83,0.00010042,2]
[347975202,1736257834144,-500.0,0.00010042,2]
[347975203,1736257834168,-278.82684786,0.00010042,2]
[347975204,1736257834193,-500.0,0.00010042,2]
[347975205,1736257834218,-500.0,0.00010042,2]
[347975206,1736257834241,-506.87,0.00010042,2]
[347975207,1736257834265,-500.0,0.00010042,2]
[347975208,1736257834289,-500.0,0.00010042,2]
[347975209,1736257834315,-500.0,0.00010042,2]
[347975210,1736257834340,-500.0,0.00010042,2]
[347975211,1736257834365,-500.0,0.00010042,2]
[347975212,1736257834389,-500.0,0.00010042,2]
[347975213,1736257834413,-642.24,0.00010042,2]
[347975214,1736257834438,-500.0,0.00010042,2]
[347975215,1736257834461,-536.56,0.00010042,2]
[347975216,1736257834485,-500.0,0.00010042,2]
[347975217,1736257834509,-500.0,0.00010042,2]
[347975218,1736257834536,-280.93124354,0.00010042,2]
[347975219,1736257834565,-500.0,0.00010042,2]
[347975220,1736257834597,-531.27,0.00010042,2]
[347975221,1736257834634,-284.99061735,0.00010042,2]
[347975222,1736257834665,-500.0,0.00010042,2]
[347975223,1736257834693,-500.0,0.00010042,2]
[347975224,1736257834719,-503.2972928,0.00010042,2]
[347975225,1736257834744,-500.0,0.00010042,2]
[347975226,1736257834768,-534.69,0.00010042,2]
[347975227,1736257834794,-500.0,0.00010042,2]
[347975228,1736257834818,-500.0,0.00010042,2]
[347975229,1736257834842,-500.0,0.00010042,2]
[347975230,1736257834866,-521.29,0.00010042,2]
[347975231,1736257834890,-500.0,0.00010042,2]
[347975232,1736257834914,-500.0,0.00010042,2]
[347975233,1736257834939,-500.0,0.00010042,2]
[347975234,1736257834968,-415.79946575,0.00010042,2]
[347975235,1736257834993,-1354.33,0.00010042,2]
[347975236,1736257835018,-500.0,0.00010042,2]
[347975237,1736257835043,-530.31,0.00010042,2]
[347975238,1736257835069,-525.81,0.00010042,2]
[347975239,1736257835096,-518.26,0.00010042,2]
[347975240,1736257835123,-872.09,0.00010042,2]
[347975241,1736257835147,-517.43,0.00010042,2]
[347975242,1736257835172,-500.0,0.00010042,2]
[347975243,1736257835416,-500.0,0.00010042,2]
[347975244,1736257835442,-500.0,0.00010042,2]
[347975245,1736257835467,-547.01,0.00010042,2]
[347975246,1736257835492,-500.0,0.00010042,2]
[347975247,1736257835516,-500.0,0.00010042,2]
[347975248,1736257835540,-500.0,0.00010042,2]
[347975249,1736257835570,-500.0,0.00010042,2]
[347975250,1736257835602,-1117.84,0.00010042,2]
[347975251,1736257835633,-539.06,0.00010042,2]
[347975252,1736257835664,-500.0,0.00010042,2]
[347975253,1736257835695,-537.39,0.00010042,2]
[347975254,1736257835730,-500.0,0.00010042,2]
[347975255,1736257835761,-500.0,0.00010042,2]
[347975256,1736257835792,-537.39,0.00010042,2]
[347975257,1736257835825,-500.0,0.00010042,2]
[347975258,1736257835858,-500.0,0.00010042,2]
[347975259,1736257835890,-500.0,0.00010042,2]
[347975260,1736257835922,-804.98,0.00010042,2]
[347975261,1736257835954,-500.0,0.00010042,2]
[347975262,1736257835987,-500.0,0.00010042,2]
[347975263,1736257836018,-500.0,0.00010042,2]
[347975264,1736257836048,-500.0,0.00010042,2]
[347975265,1736257836079,-599.80502619,0.00010042,2]
[347975266,1736257836108,-422.25488864,0.00010042,2]
[347975267,1736257836138,-500.0,0.00010042,2]
[347975268,1736257836170,-500.0,0.00010042,2]
[347975269,1736257836202,-500.0,0.00010042,2]
[347975270,1736257836231,-521.67,0.00010042,2]
[347975271,1736257836261,-500.0,0.00010042,2]
[347975272,1736257836290,-500.0,0.00010042,2]
[347975273,1736257836320,-516.84,0.00010042,2]
[347975274,1736257836350,-500.0,0.00010042,2]
[347975275,1736257836379,-500.0,0.00010042,2]
[347975276,1736257836409,-500.0,0.00010042,2]
[347975277,1736257836439,-500.0,0.00010042,2]
[347975278,1736257836469,-500.0,0.00010042,2]
[347975279,1736257836499,-558.77,0.00010042,2]
[347975280,1736257836527,-500.0,0.00010042,2]
[347975281,1736257836559,-514.11,0.00010042,2]
[347975282,1736257836593,-500.0,0.00010042,2]
[347975283,1736257836627,-538.54,0.00010042,2]
[347975284,1736257836661,-500.0,0.00010042,2]
[347975285,1736257836695,-500.0,0.00010042,2]
[347975286,1736257836731,-500.0,0.00010042,2]
[347975287,1736257836768,-500.0,0.00010042,2]
[347975288,1736257836804,-500.0,0.00010042,2]
[347975289,1736257836844,-500.0,0.00010042,2]
[347975290,1736257836879,-500.0,0.00010042,2]
[347975291,1736257836909,-500.0,0.00010042,2]
[347975292,1736257836939,-500.0,0.00010042,2]
[347975293,1736257836970,-627.81,0.00010042,2]
[347975294,1736257836999,-500.0,0.00010042,2]
[347975295,1736257837031,-500.0,0.00010042,2]
[347975296,1736257837062,-500.0,0.00010042,2]
[347975297,1736257837092,-500.0,0.00010042,2]
[347975298,1736257837122,-661.67,0.00010042,2]
[347975299,1736257837153,-396.55624592,0.00010042,2]
[347975300,1736257837182,-500.0,0.00010042,2]
[347975301,1736257837213,-500.0,0.00010042,2]
[347975302,1736257837245,-534.41,0.00010042,2]
[347975304,1736257837276,-933.95,0.00010042,2]
[347975306,1736257837307,-15000.0,0.00010042,2]
[347975308,1736257837339,-692.45,0.00010043,2]
[347975309,1736257837372,-1437.88,0.00010043,2]
[347975312,1736257837404,-870.49,0.00010043,2]
[347975313,1736257837437,-3316.03,0.00010043,2]
[347975314,1736257837471,-3177.21,0.00010043,2]
[347975315,1736257837503,-3906.11,0.00010043,2]
[347975316,1736257837535,-1991.91,0.00010043,2]
[347975317,1736257837573,-1684.03,0.00010043,2]
[347975318,1736257837607,-1012.76,0.00010043,2]
[347975319,1736257837641,-5511.6,0.00010043,2]
[347975320,1736257837674,-3077.93,0.00010043,2]
[347975321,1736257837710,-3222.16,0.00010043,2]
[347975322,1736257837746,-14899.67,0.00010043,2]
[347975323,1736257837779,-500.0,0.00010043,2]
[347975324,1736257837814,-952.19,0.00010043,2]
[347975326,1736257837847,-1657.04,0.00010044,2]
[347975327,1736257837879,-1042.99,0.00010044,2]
[347975328,1736257837911,-2183.4,0.00010044,2]
[347975329,1736257837942,-500.0,0.00010044,2]
[347975330,1736257837974,-1262.12,0.00010044,2]
[347975331,1736257838007,-1567.46,0.00010044,2]
[347975335,1736257838042,-923.13,0.00010044,2]
[347975336,1736257838077,-3310.73,0.00010044,2]
[347975337,1736257838109,-2640.22,0.00010044,2]
[347975338,1736257838140,-151.0,0.00010046,2]
[347975339,1736257838170,-1000.0,0.00010077,2]
[347975340,1736257838202,-251.16384214,0.00010107,2]
[347975341,1736257838234,-543.65,0.00010109,2]
[347975342,1736257838264,-150.95,0.00010137,2]
[347975343,1736257838294,-525.19,0.00010137,2]
[347975344,1736257838325,-174.35,0.00010137,2]
[347975345,1736257838356,-900.0,0.00010138,2]
[347975346,1736257838391,-251.16384214,0.0001021,2]
[347975347,1736257838423,-426.97263627,0.00010224,2]
[347975348,1736257838454,-500.0,0.00010246,2]
[347975349,1736257838485,-502.09929352,0.00010246,2]
[347975350,1736257838516,-663.09,0.00010246,2]
[347975351,1736257838547,-500.0,0.00010246,2]
[347975352,1736257838580,-500.0,0.00010246,2]
[347975353,1736257838613,-538.05,0.00010246,2]
[347975354,1736257838646,-539.06,0.00010246,2]
[347975355,1736257838678,-500.0,0.00010246,2]
[347975356,1736257838712,-516.31,0.00010246,2]
[347975357,1736257838746,-500.0,0.00010246,2]
[347975358,1736257838778,-500.0,0.00010246,2]
[347975359,1736257838813,-575.66,0.00010246,2]
[347975360,1736257838845,-500.0,0.00010246,2]
[347975361,1736257838879,-500.0,0.00010246,2]
[347975362,1736257838912,-500.0,0.00010246,2]
[347975363,1736257838945,-500.0,0.00010246,2]
[347975364,1736257838981,-672.1,0.00010246,2]
[347975365,1736257839014,-500.0,0.00010246,2]
[347975366,1736257839046,-500.0,0.00010246,2]
[347975367,1736257839080,-515.14,0.00010246,2]
[347975368,1736257839114,-574.83,0.00010246,2]
[347975369,1736257839150,-553.83,0.00010246,2]
[347975370,1736257839187,-629.07,0.00010246,2]
[347975371,1736257839223,-610.58,0.00010246,2]
[347975373,1736257839260,-500.0,0.00010246,2]
[347975374,1736257839297,-2287.44,0.00010246,2]
[347975375,1736257839331,-500.0,0.00010246,2]
[347975376,1736257839365,-1440.5,0.00010246,2]
[347975377,1736257839399,-1687.68,0.00010246,2]
[347975378,1736257839431,-1024.01,0.00010246,2]
[347975379,1736257839464,-1720.02,0.00010246,2]
[347975380,1736257839497,-851.99,0.00010246,2]
[347975381,1736257839530,-903.79,0.00010246,2]
[347975382,1736257839562,-550.11,0.00010246,2]
[347975383,1736257839594,-500.0,0.00010246,2]
[347975384,1736257839625,-501.9587472,0.00010246,2]
[347975385,1736257839657,-500.0,0.00010246,2]
[347975386,1736257839692,-500.0,0.00010246,2]
[347975387,1736257839728,-500.0,0.00010246,2]
[347975388,1736257839761,-1643.01,0.00010246,2]
[347975389,1736257839795,-500.0,0.00010246,2]
[347975390,1736257839830,-500.0,0.00010246,2]
[347975391,1736257839863,-639.04,0.00010246,2]
[347975392,1736257839896,-500.0,0.00010246,2]
[347975393,1736257839932,-500.0,0.00010246,2]
[347975394,1736257839967,-500.0,0.00010246,2]
[347975395,1736257840001,-1964.96,0.00010246,2]
[347975396,1736257840035,-500.0,0.00010246,2]
[347975397,1736257840069,-1896.73,0.00010246,2]
[347975398,1736257840101,-500.0,0.00010246,2]
[347975399,1736257840131,-500.0,0.00010246,2]
[347975400,1736257840163,-500.0,0.00010246,2]
[347975401,1736257840194,-500.0,0.00010246,2]
[347975402,1736257840225,-977.17,0.00010246,2]
[347975403,1736257840256,-2741.49,0.00010246,2]
[347975404,1736257840287,-500.0,0.00010246,2]
[347975405,1736257840317,-500.0,0.00010246,2]
[347975406,1736257840348,-2012.97,0.00010246,2]
[347975407,1736257840378,-574.03,0.00010246,2]
[347975408,1736257840605,-2070.71,0.00010246,2]
[347975409,1736257840637,-500.0,0.00010246,2]
[347975410,1736257840668,-156.54,0.00010246,2]
[347975411,1736257840704,-500.0,0.00010246,2]
[347975412,1736257840739,-737.54,0.00010246,2]
[347975413,1736257840770,-500.0,0.00010246,2]
[347975414,1736257840801,-500.0,0.00010246,2]
[347975415,1736257840833,-500.0,0.00010246,2]
[347975416,1736257840864,-524.89,0.00010246,2]
[347975417,1736257840896,-1724.58,0.00010246,2]
[347975418,1736257840926,-500.0,0.00010246,2]
[347975419,1736257840956,-500.0,0.00010246,2]
[347975420,1736257840992,-956.02,0.00010246,2]
[347975421,1736257841023,-2305.42,0.00010246,2]
[347975422,1736257841054,-525.73,0.00010246,2]
[347975423,1736257841086,-638.0,0.00010246,2]
[347975424,1736257841118,-587.3,0.00010246,2]
[347975425,1736257841150,-4114.69,0.00010246,2]
[347975426,1736257841180,-571.13,0.00010246,2]
[347975427,1736257841211,-1355.79,0.00010246,2]
[347975428,1736257841244,-1031.47,0.00010246,2]
[347975429,1736257841274,-500.0,0.00010246,2]
[347975430,1736257841303,-632.86,0.00010246,2]
[347975431,1736257841333,-518.93,0.00010246,2]
[347975432,1736257841363,-500.0,0.00010246,2]
[347975433,1736257841394,-1009.19,0.00010246,2]
[347975434,1736257841424,-1000.9,0.00010246,2]
[347975435,1736257841455,-2288.69,0.00010246,2]
[347975436,1736257841486,-500.0,0.00010246,2]
[347975437,1736257841518,-791.75,0.00010246,2]
[347975438,1736257841549,-663.46,0.00010246,2]
[347975439,1736257841580,-500.0,0.00010246,2]
[347975440,1736257841612,-500.0,0.00010246,2]
[347975441,1736257841643,-1840.35,0.00010246,2]
[347975442,1736257841674,-2352.55,0.00010246,2]
[347975443,1736257841708,-500.0,0.00010246,2]
[347975444,1736257841740,-500.0,0.00010246,2]
[347975445,1736257841772,-500.0,0.00010246,2]
[347975446,1736257841802,-607.63750142,0.00010246,2]
[347975447,1736257841837,-500.0,0.00010246,2]
[347975448,1736257841871,-914.56,0.00010246,2]
[347975449,1736257841905,-524.26,0.00010246,2]
[347975450,1736257841936,-500.0,0.00010246,2]
[347975451,1736257841972,-626.29,0.00010246,2]
[347975452,1736257842005,-500.0,0.00010246,2]
[347975453,1736257842038,-1717.4,0.00010246,2]
[347975454,1736257842070,-500.0,0.00010246,2]
[347975455,1736257842107,-685.03,0.00010246,2]
[347975456,1736257842139,-500.0,0.00010246,2]
[347975457,1736257842170,-500.0,0.00010246,2]
[347975458,1736257842202,-550.11,0.00010246,2]
[347975461,1736257842234,-500.0,0.00010246,2]
[347975463,1736257842266,-525.45,0.00010246,2]
[347975464,1736257842299,-500.0,0.00010246,2]
[347975466,1736257842331,-500.0,0.00010246,2]
[347975467,1736257842365,-2384.71,0.00010246,2]
[347975469,1736257842398,-840.39,0.00010246,2]
[347975470,1736257842430,-838.78,0.00010246,2]
[347975471,1736257842461,-533.53,0.00010246,2]
[347975474,1736257842494,-515.13,0.00010246,2]
[347975475,1736257842525,-500.0,0.00010246,2]
[347975476,1736257842558,-500.0,0.00010246,2]
[347975477,1736257842589,-500.0,0.00010246,2]
[347975478,1736257842621,-1787.79,0.00010246,2]
[347975479,1736257842653,-531.78,0.00010246,2]
[347975480,1736257842686,-500.0,0.00010246,2]
[347975481,1736257842723,-514.67418402,0.00010246,2]
[347975482,1736257842755,-567.94,0.00010246,2]
[347975483,1736257842788,-500.0,0.00010246,2]
[347975484,1736257842819,-500.0,0.00010246,2]
[347975485,1736257842850,-2251.89,0.00010246,2]
[347975486,1736257842883,-500.0,0.00010246,2]
[347975487,1736257842913,-500.0,0.00010246,2]
[347975488,1736257842944,-500.0,0.00010246,2]
[347975489,1736257842976,-500.0,0.00010246,2]
[347975490,1736257843007,-630.06,0.00010246,2]
[347975491,1736257843038,-1464.02,0.00010246,2]
[347975492,1736257843071,-500.0,0.00010246,2]
[347975493,1736257843103,-500.0,0.00010246,2]
[347975494,1736257843135,-500.0,0.00010246,2]
[347975495,1736257843169,-500.0,0.00010246,2]
[347975496,1736257843202,-751.18,0.00010246,2]
[347975497,1736257843233,-500.0,0.00010246,2]
[347975498,1736257843264,-7102.62,0.00010246,2]
[347975499,1736257843295,-2682.01,0.00010246,2]
[347975500,1736257843324,-500.0,0.00010246,2]
[347975501,1736257843357,-3981.04,0.00010246,2]
[347975502,1736257843389,-500.0,0.00010246,2]
[347975503,1736257843423,-500.0,0.00010246,2]
[347975504,1736257843455,-500.0,0.00010246,2]
[347975505,1736257843488,-1113.93,0.00010246,2]
[347975506,1736257843519,-3261.92,0.00010246,2]
[347975507,1736257843550,-500.0,0.00010246,2]
[347975509,1736257843584,-549.07,0.00010246,2]
[347975510,1736257843616,-500.0,0.00010246,2]
[347975511,1736257843646,-458.31105258,0.00010246,2]
[347975512,1736257843678,-500.0,0.00010246,2]
[347975513,1736257843713,-500.0,0.00010246,2]
[347975514,1736257843746,-18202.93,0.00010246,2]
[347975515,1736257843777,-500.0,0.00010246,2]
[347975516,1736257843808,-500.0,0.00010246,2]
[347975517,1736257843840,-500.0,0.00010246,2]
[347975518,1736257843872,-500.0,0.00010246,2]
[347975519,1736257843902,-338.74931246,0.00010246,2]
[347975520,1736257843934,-500.0,0.00010246,2]
[347975521,1736257843969,-500.0,0.00010246,2]
[347975522,1736257844000,-500.0,0.00010246,2]
[347975523,1736257844030,-760.62,0.00010246,2]
[347975524,1736257844060,-500.0,0.00010246,2]
[347975525,1736257844092,-500.0,0.00010246,2]
[347975526,1736257844125,-6621.17,0.00010246,2]
[347975527,1736257844156,-500.0,0.00010246,2]
[347975528,1736257844188,-2069.49,0.00010246,2]
[347975529,1736257844220,-500.0,0.00010246,2]
[347975530,1736257844251,-500.0,0.00010246,2]
[347975531,1736257844282,-657.74,0.00010246,2]
[347975532,1736257844313,-500.0,0.00010246,2]
[347975533,1736257844344,-500.0,0.00010246,2]
[347975534,1736257844375,-1548.37,0.00010246,2]
[347975535,1736257844407,-500.0,0.00010246,2]
[347975536,1736257844437,-275.99524734,0.00010246,2]
[347975537,1736257844468,-2780.33,0.00010246,2]
[347975538,1736257844499,-6160.88,0.00010246,2]
[347975539,1736257844529,-586.91,0.00010246,2]
[347975540,1736257844559,-174.49265737,0.00010246,2]
[347975541,1736257844590,-500.0,0.00010246,2]
[347975542,1736257844621,-500.0,0.00010246,2]
[347975543,1736257844652,-1852.42,0.00010246,2]
[347975544,1736257844682,-500.0,0.00010246,2]
[347975545,1736257844717,-500.0,0.00010246,2]
[347975546,1736257844749,-2224.31,0.00010246,2]
[347975547,1736257844782,-3765.66,0.00010246,2]
[347975548,1736257844814,-500.0,0.00010246,2]
[347975549,1736257844849,-10054.67,0.00010246,2]
[347975550,1736257844881,-586.89856661,0.00010246,2]
[347975551,1736257844913,-1825.82,0.00010246,2]
[347975552,1736257844944,-500.0,0.00010246,2]
[347975553,1736257844977,-5948.66,0.00010246,2]
[347975554,1736257845024,-513.44,0.00010246,2]
[347975555,1736257845055,-500.0,0.00010246,2]
[347975556,1736257845086,-2002.3,0.00010246,2]